fUSD/lending_fUSD_20240702
["ID","MTS","AMOUNT","RATE_DAILY","PERIOD"]
[330892642,1719918640961,-50000.0,0.00022015,2]
[330892643,1719918640970,-3236.17981404,0.00022026,2]
[330892644,1719918640981,-760.0,0.0002205,2]
[330892645,1719918640990,-3180.65675418,0.00022098,2]
[330892646,1719918641000,-3236.17981404,0.00022114,2]
[330892647,1719918641009,-1564.2415807,0.00022142,30]
[330892648,1719918641019,-1000.0,0.00022159,2]
[330892649,1719918641028,-557.68534275,0.00022191,2]
[330892650,1719918641038,-159.59318396,0.00022199,2]
[330892651,1719918641047,-2500.0,0.000222,2]
[330892652,1719918641057,-3236.17981404,0.00022202,2]
[330892653,1719918641067,-155.0,0.00022211,2]
[330892654,1719918641081,-201.66342606,0.00022211,2]
[330892655,1719918641091,-19215.659831,0.00022213,3]
[330892656,1719918641100,-416.74693327,0.00022214,2]
[330892657,1719918641109,-9607.82991551,0.00022231,3]
[330892658,1719918641119,-12361.7933,0.00022241,2]
[330892659,1719918641128,-760.0,0.00022275,2]
[330892660,1719918641137,-500.0,0.00022285,2]
[330892661,1719918641146,-200.0,0.00022285,2]
[330892662,1719918641156,-3236.17981404,0.0002229,2]
[330892663,1719918641166,-155.22029957,0.00022294,3]
[330892664,1719918641176,-19215.659831,0.00022297,3]
[330892665,1719918641185,-28823.4897465,0.00022355,3]
[330892666,1719918641194,-291.56,0.00022355,2]
[330892667,1719918641203,-197.06716312,0.00022364,2]
[330892668,1719918641212,-1000.0,0.00022365,2]
[330892669,1719918641221,-25000.0,0.00022365,2]
[330892670,1719918641231,-167.4460254,0.00022365,2]
[330892671,1719918641241,-10665.15001192,0.00022365,2]
[330892672,1719918641251,-200.3749004,0.00022365,2]
[330892673,1719918641260,-1627.47753543,0.00022365,2]
[330892674,1719918641272,-2168.59643,0.00022365,2]
[330892675,1719918641291,-612.99,0.00022365,2]
[330892676,1719918641302,-144.89624214,0.00022365,2]
[330892677,1719918641310,-189.56011486,0.00022365,4]
[330892678,1719918641319,-7510.52810363,0.00022365,2]
[330892679,1719918641328,-19215.659831,0.0002238,3]
[330892680,1719918641337,-291.56,0.0002238,2]
[330892681,1719918641346,-291.56,0.0002238,2]
[330892683,1719918641355,-291.56,0.0002238,2]
[330892685,1719918641364,-291.56,0.0002238,2]
[330892687,1719918641374,-1932.95237665,0.0002239,3]
[330892688,1719918641385,-467.31889,0.0002239,3]
[330892689,1719918641396,-132109.34755035,0.0002239,3]
[330892690,1719918641406,-93326.274896,0.0002239,3]
[330892691,1719918641418,-9607.82991551,0.00022392,3]
[330892692,1719918641428,-152.75639843,0.00022399,2]
[330892693,1719918641437,-2000.0,0.000224,2]
[330892694,1719918641446,-2000.0,0.000224,2]
[330892695,1719918641454,-116494.20733144,0.000224,2]
[330892696,1719918641466,-94187.91244299,0.000224,2]
[330892697,1719918641479,-39306.88022557,0.000224,2]
[330892698,1719918641488,-257.0,0.000224,2]
[330892699,1719918641497,-515.0,0.000224,2]
[330892700,1719918641506,-191.0,0.000224,5]
[330892701,1719918641515,-16008.89998974,0.000224,5]
[330892702,1719918641524,-1079.0,0.000224,10]
[330892703,1719918641534,-500.0,0.000224,2]
[330892704,1719918641543,-415.66593,0.000224,2]
[330892705,1719918641552,-13332.3249851,0.00022403,3]
[330892706,1719918641561,-10665.15001185,0.00022413,2]
[330892707,1719918641571,-19215.659831,0.00022425,3]
[330892708,1719918641580,-13332.3249851,0.00022425,3]
[330892709,1719918641590,-152.75639843,0.00022434,2]
[330892710,1719918641599,-9607.82991551,0.00022434,3]
[330892711,1719918641609,-13332.3249851,0.00022434,3]
[330892712,1719918641619,-164.32068645,0.00022438,4]
[330892713,1719918641628,-298.20228831,0.00022438,4]
[330892714,1719918641637,-150.40251901,0.00022438,4]
[330892715,1719918641646,-150.27324343,0.00022438,4]
[330892716,1719918641656,-278.02105132,0.00022438,4]
[330892717,1719918641664,-150.52821054,0.00022438,4]
[330892718,1719918641673,-150.9328722,0.00022438,4]
[330892719,1719918641683,-150.44687282,0.00022438,4]
[330892720,1719918641692,-156.33437369,0.00022438,4]
[330892721,1719918641702,-151.25721266,0.00022438,4]
[330892722,1719918641711,-150.52666026,0.00022438,4]
[330892723,1719918641720,-9607.82991551,0.00022451,3]
[330892724,1719918641730,-13332.3249851,0.00022451,3]
[330892725,1719918641739,-2691.30994609,0.00022455,3]
[330892726,1719918641750,-912.1483,0.00022455,3]
[330892727,1719918641761,-3026.11595785,0.00022455,3]
[330892733,1719918643608,-1310.01098762,0.00022455,3]
[330892734,1719918643621,-378.23304806,0.00022455,3]
[330892803,1719918646759,-155.0,0.00019451,2]
[330892806,1719918646769,-155.22029957,0.00022222,3]
[330892808,1719918646778,-365.1504049,0.00022455,3]
[330892853,1719919832532,-457.29170079,0.000163,2]
[330892854,1719919832543,-1413.03331321,0.000163,2]
[330892858,1719919832812,-257.3365,0.000163,2]
[330892859,1719919832824,-1008.31429859,0.000163,2]
[330892860,1719919832836,-401.02418741,0.000163,2]
[330892861,1719919832845,-354.55558899,0.00017159,2]
[330892862,1719919832861,-1041.04,0.00017159,2]
[330892863,1719919832873,-2007.456,0.00017159,2]
[330892881,1719919838541,-1596.94841101,0.00017159,2]
[330892883,1719919838551,-300.0,0.00017259,2]
[330892884,1719919838560,-9236.41322618,0.00017566,2]
[330892885,1719919838569,-432.55,0.00017736,2]
[330892886,1719919838579,-564.72,0.00018371,2]
[330892887,1719919838588,-155.80404999,0.00018864,2]
[330892888,1719919838597,-13.56431282,0.00018864,2]
[330892892,1719919838858,-188.16743123,0.00018864,2]
[330892893,1719919838868,-205.77904189,0.00018899,2]
[330892894,1719919838880,-63.30024935,0.00018899,2]
[330892895,1719919838890,-2093.87866846,0.00018919,2]
[330892896,1719919838900,-475.23146611,0.00018919,2]
[330892897,1719919838910,-155.38720143,0.00018919,2]
[330892898,1719919838919,-227.09542874,0.00018919,2]
[330892899,1719919838929,-159.26174028,0.00018987,2]
[330892900,1719919838940,-268.45234995,0.00018999,2]
[330892901,1719919838949,-1000.0,0.00019068,2]
[330892902,1719919838959,-2050.339894,0.00019069,2]
[330892903,1719919838969,-155.0,0.00019077,2]
[330892904,1719919838979,-1000.0,0.00019088,2]
[330892905,1719919838988,-155.0,0.00019177,2]
[330892906,1719919839208,-623.1312429,0.00019177,2]
[330892907,1719919839307,-155.0,0.00019177,2]
[330892908,1719919839318,-296.71594966,0.0001935,2]
[330892909,1719919839328,-518.57690782,0.00019352,2]
[330892910,1719919839338,-205.27551127,0.00019352,2]
[330892911,1719919839348,-378.3670316,0.00019389,2]
[330892912,1719919839358,-530.36557167,0.00019389,2]
[330892913,1719919839368,-250.0,0.00019427,2]
[330892914,1719919839378,-155.0,0.00019451,2]
[330892915,1719919839388,-250.0,0.00019467,2]
[330892916,1719919839399,-200.0,0.00019475,2]
[330892917,1719919839410,-1000.0,0.00019529,2]
[330892918,1719919839424,-716.37,0.00019537,2]
[330892919,1719919839436,-210.02763994,0.00019565,2]
[330892920,1719919839447,-201.09,0.00019586,2]
[330892921,1719919839458,-500.0,0.00019599,2]
[330892922,1719919839471,-1000.0,0.00019606,2]
[330892923,1719919839482,-150.0,0.00019687,2]
[330892924,1719919839493,-409.15851751,0.00019725,2]
[330892925,1719919839505,-250.0,0.00019813,2]
[330892926,1719919839515,-519.72487603,0.00019863,2]
[330892927,1719919839526,-158.31418936,0.00019863,2]
[330892928,1719919839537,-14191.52494159,0.0001992,2]
[330892929,1719919839550,-1050.26680971,0.0001992,2]
[330892930,1719919839562,-1774.37782666,0.0001992,2]
[330892931,1719919839575,-6883.83042204,0.0001992,2]
[330892932,1719919839585,-155.0,0.00019964,2]
[330892933,1719919839596,-1359.11,0.00020081,2]
[330892934,1719919839606,-166.08,0.0002031,2]
[330892935,1719919839616,-629.25029984,0.00020349,2]
[330892936,1719919840220,-115.81970016,0.00020349,2]
[330892937,1719919840231,-180.43668384,0.00020635,2]
[330892938,1719919840244,-384.28331616,0.00020635,2]
[330892939,1719919840254,-412.16459587,0.0002064,2]
[330892942,1719919840541,-1539.22186164,0.00019354,2]
[330892944,1719919840552,-587.83540413,0.0002064,2]
[330892946,1719919840563,-2237.94273423,0.000208,2]
[330892955,1719919840793,-445.13310247,0.000208,2]
[330892968,1719919841102,-338.44,0.00019615,30]
[330892969,1719919841113,-186.49298493,0.000208,2]
[330892970,1719919841375,-344.62556429,0.000208,2]
[330892971,1719919841387,-741.53973658,0.000208,2]
[330892972,1719919841397,-947.93738875,0.000208,2]
[330892974,1719919843942,-155.0,0.00019077,2]
[330892975,1719919843952,-553.06261125,0.000208,2]
[330892976,1719919843962,-548.74043089,0.00021,2]
[330892996,1719920020992,2645.8,0.00024658,60]
[330892998,1719920071819,150.5,0.0001399,30]
[330892999,1719920072302,150.5,0.0001398,30]
[330893000,1719920072336,150.5,0.0001399,30]
[330893001,1719920072818,150.5,0.0001398,30]
[330893002,1719920072846,150.5,0.0001397,30]
[330893003,1719920073336,150.5,0.0001397,30]
[330893014,1719920191492,150.5,0.0001399,30]
[330893015,1719920191983,150.5,0.0001398,30]
[330893016,1719920192511,150.5,0.0001397,30]
[330893018,1719920204830,481.87186993,0.0001251,2]
[330893021,1719920221512,906034.16425529,0.000225,120]
[330893026,1719920311022,281.36,0.0001399,30]
[330893027,1719920311503,208.5,0.0001399,30]
[330893030,1719920431363,150.5,0.0001399,30]
[330893031,1719920431841,193.0,0.0001398,30]
[330893053,1719920924676,-12789.68758477,0.00013759,2]
[330893054,1719920924704,-600.95,0.00013771,2]
[330893055,1719920924734,-1001.9169,0.000139,2]
[330893056,1719920924760,-16149.3312,0.000139,2]
[330893057,1719920924789,-19458.11431523,0.000139,2]
[330893097,1719921031522,-720.0,0.000139,2]
[330893098,1719921031534,-397.08384421,0.000139,2]
[330893099,1719921031545,-784.98522457,0.000139,2]
[330893100,1719921031556,-784.46911599,0.000139,2]
[330893101,1719921031565,-1241.12493456,0.000139,2]
[330893102,1719921031576,-846.42746544,0.000139,2]
[330893103,1719921031586,-300.41202061,0.000139,2]
[330893104,1719921031595,-177.65464192,0.000139,2]
[330893105,1719921031604,-1472.41154886,0.000139,2]
[330893106,1719921031619,-439.39945634,0.000139,2]
[330893107,1719921031631,-16337.20006466,0.000139,2]
[330893108,1719921031640,-287.9612,0.000139,2]
[330893109,1719921031649,-150.0,0.00013918,2]
[330893110,1719921031659,-705.25514171,0.00013937,2]
[330893111,1719921031667,-168.49856739,0.00013947,2]
[330893112,1719921031676,-378.81689151,0.00013947,2]
[330893113,1719921031685,-10563.17326517,0.00013947,2]
[330893114,1719921031694,-300.44083554,0.00013947,2]
[330893115,1719921031703,-1050.0,0.0001398,2]
[330893116,1719921031712,-941.31109449,0.0001398,2]
[330893117,1719921031722,-1096.39,0.0001399,2]
[330893118,1719921031732,-1096.39,0.0001399,2]
[330893119,1719921031742,-1096.39,0.0001399,2]
[330893120,1719921031751,-1096.39,0.0001399,2]
[330893121,1719921031762,-1096.39,0.0001399,2]
[330893122,1719921031775,-25063.39347798,0.00014,2]
[330893123,1719921031787,-2933.33267482,0.00014,2]
[330893124,1719921031798,-447.26323504,0.00014,2]
[330893125,1719921031826,-455.84,0.00014,2]
[330893128,1719921031837,-53257.75418538,0.00014,2]
[330893130,1719921031855,-1152.81088996,0.00014,2]
[330893132,1719921031866,-1096607.41664694,0.00014,2]
[330893135,1719921031882,-1935.23226309,0.00014,2]
[330893137,1719921031893,-1578.55756815,0.00014,2]
[330893138,1719921031904,-2000.0,0.00014,2]
[330893139,1719921031915,-374.10436896,0.00014,2]
[330893140,1719921031928,-3674.28117892,0.00014,2]
[330893141,1719921031942,-9195.81231336,0.00014,2]
[330893146,1719921037336,-1208.92955144,0.00014,2]
[330893147,1719921037612,-1220.2214538,0.00014,2]
[330893148,1719921037624,-5800.69742509,0.00014,2]
[330893149,1719921037635,-31468.77082061,0.00014,2]
[330893150,1719921037647,-10325.045668,0.00014,2]
[330893151,1719921037658,-623.91310978,0.00014,2]
[330893152,1719921037669,-37616.033428,0.00014,2]
[330893153,1719921037723,-371.35077724,0.00014,2]
[330893154,1719921037736,-6900.0,0.00014,2]
[330893164,1719921039656,-2123.97596476,0.00014,2]
[330893165,1719921039714,-226.29327966,0.00013947,2]
[330893166,1719921039724,-443.70672034,0.00014,2]
[330893167,1719921039736,-1421.277422,0.00014,2]
[330893168,1719921039779,-540.39,0.00014,2]
[330893169,1719921039792,-509.91418348,0.00014,2]
[330893170,1719921040052,-526.41,0.00014,2]
[330893171,1719921040106,-410.72461354,0.00014,2]
[330893172,1719921040271,-2853.17794119,0.00014,2]
[330893173,1719921040283,-272.12555121,0.00014,2]
[330893174,1719921040295,-56251.73829265,0.00014,2]
[330893183,1719921042764,-174.0861955,0.00013947,2]
[330893184,1719921042774,-1348.61568216,0.00014,2]
[330893185,1719921042785,-2033.52529279,0.00014,2]
[330893186,1719921042820,-4344.24105658,0.00014,2]
[330893187,1719921042831,-1736.9583453,0.00014,2]
[330893188,1719921042934,-313.3815487,0.00014,2]
[330893189,1719921042990,-378.86231924,0.00014,2]
[330893210,1719921045442,-1084.74979351,0.00014,2]
[330893218,1719921045557,-960.80812001,0.00014,2]
[330893219,1719921045670,-748.95226753,0.00014,2]
[330893220,1719921045729,-322.8916,0.00014,2]
[330893221,1719921045740,-3746.34464184,0.00014,2]
[330893222,1719921045752,-594.81,0.00014,2]
[330893223,1719921045849,-2518.74915113,0.00014,2]
[330893256,1719921284653,1208.92955144,0.00013472,2]
[330893261,1719921371675,150.0,0.00011199,2]
[330893262,1719921371698,150.0,0.00011199,2]
[330893263,1719921371719,150.0,0.00011199,2]
[330893264,1719921371741,277.64260232,0.00011199,2]
[330893265,1719921371769,2852.24939902,0.00011199,2]
[330893267,1719921386020,-155.0,0.00013472,2]
[330893268,1719921386045,-300.41202061,0.00013472,2]
[330893269,1719921386068,-851.63219216,0.00013472,2]
[330893270,1719921386090,-5150.203758,0.0001373,2]
[330893271,1719921386113,-157.1593,0.00013799,2]
[330893272,1719921386136,-281.5182,0.000138,2]
[330893273,1719921386159,-651.225661,0.00013889,2]
[330893274,1719921386181,-3227.9771,0.000139,2]
[330893275,1719921386203,-1026.5796,0.000139,2]
[330893276,1719921386225,-165.4322,0.000139,2]
[330893277,1719921386248,-278.80644487,0.000139,2]
[330893278,1719921386270,-6419.6178,0.000139,2]
[330893279,1719921386296,-466.9961,0.000139,2]
[330893280,1719921386319,-6813.5636,0.000139,2]
[330893281,1719921386343,-7903.87602336,0.00013947,2]
[330893282,1719921388013,652.29,0.00012209,2]
[330893285,1719921477921,155.0,0.00012209,2]
[330893286,1719921482604,26825.602897,0.00011199,2]
[330893288,1719921502230,299.94933699,0.00012209,2]
[330893291,1719921552189,155.0,0.00012209,2]
[330893292,1719921658437,155.0,0.00012209,2]
[330893294,1719921764493,189.31559098,0.00012209,2]
[330893295,1719921766756,651.61918105,0.00012302,2]
[330893297,1719921818861,2582.10172503,0.00011199,2]
[330893298,1719921818889,6654.31150115,0.00011199,2]
[330893350,1719922167125,-168.0,0.00011282,2]
[330893351,1719922167889,150.0,0.00011199,2]
[330893352,1719922167914,150.0,0.00011199,2]
[330893353,1719922167937,150.0,0.00011199,2]
[330893354,1719922167964,150.0,0.00011199,2]
[330893355,1719922167988,150.0,0.00011199,2]
[330893356,1719922168011,150.0,0.00011199,2]
[330893357,1719922168035,150.0,0.00011199,2]
[330893358,1719922168058,236.20978201,0.00011199,2]
[330893359,1719922168084,1251.11000578,0.00011199,2]
[330893360,1719922168863,2375.74966593,0.00011199,2]
[330893392,1719922231747,-451.67,0.00011282,2]
[330893393,1719922231757,-2000.0,0.00012202,2]
[330893394,1719922231766,-155.32266679,0.00012273,2]
[330893395,1719922231776,-3247.61,0.00012673,2]
[330893396,1719922231788,-9156.53809321,0.00012716,2]
[330893397,1719922231862,-322.46768831,0.00012716,2]
[330893398,1719922231874,-14420.99421848,0.00012716,2]
[330893399,1719922231883,-15338.84,0.00012755,2]
[330893400,1719922231893,-250.0,0.00012775,2]
[330893401,1719922231903,-150.0,0.00012817,2]
[330893402,1719922231912,-929.18,0.00012885,2]
[330893403,1719922231922,-920.59,0.00012898,2]
[330893404,1719922231931,-153.51,0.00013142,2]
[330893405,1719922231941,-186.61,0.0001323,2]
[330893406,1719922231950,-153.51,0.00013257,2]
[330893407,1719922231960,-500.0,0.0001331,2]
[330893408,1719922231969,-153.51,0.00013371,2]
[330893409,1719922231979,-264.40040348,0.00013472,2]
[330893410,1719922231988,-378.31889351,0.00013472,2]
[330893411,1719922231997,-155.0,0.00013472,2]
[330893412,1719922232006,-153.51,0.00013485,2]
[330893413,1719922232018,-6067.56,0.00013485,2]
[330893414,1719922232027,-499.99,0.00013485,2]
[330893415,1719922232038,-328.62827887,0.00013516,2]
[330893416,1719922232046,-619.67,0.00013546,2]
[330893417,1719922232055,-544.30071955,0.00013574,2]
[330893418,1719922232064,-153.51,0.00013599,2]
[330893419,1719922232073,-153.51,0.00013713,2]
[330893420,1719922232083,-412.03672268,0.00013802,2]
[330893421,1719922232092,-410.78672007,0.00013823,2]
[330893422,1719922232101,-153.51,0.00013827,2]
[330893423,1719922232110,-385.31605884,0.00013836,2]
[330893424,1719922232119,-155.0,0.00013849,2]
[330893425,1719922232128,-10457.30062008,0.0001386,2]
[330893426,1719922232142,-1.99690059,0.00013899,2]
[330893427,1719922232154,-153.00309941,0.00013899,2]
[330893428,1719922232163,-1505.79690059,0.000139,2]
[330893429,1719922232173,-1723.49402903,0.000139,2]
[330893430,1719922232190,-75.74427038,0.000139,2]
[330893431,1719922232199,-8789.2018968,0.000139,2]
[330893432,1719922232212,-827.4647032,0.000139,2]
[330893433,1719922232426,-9974.56634822,0.000139,2]
[330893434,1719922232436,-302.04558578,0.000139,2]
[330893435,1719922232446,-835.31061694,0.000139,2]
[330893436,1719922232455,-219.52211462,0.000139,2]
[330893437,1719922232464,-500.0,0.00013929,2]
[330893438,1719922232473,-191.84,0.0001393,2]
[330893439,1719922232482,-10332.87231988,0.00014,2]
[330893442,1719922237769,-1208.92955144,0.00013516,2]
[330893443,1719922237780,-282.08027533,0.00013543,2]
[330893444,1719922237791,-1012.87391772,0.00013759,2]
[330893445,1719922237801,-21958.53227017,0.00014,2]
[330893446,1719922237812,-2208.08890902,0.00014,2]
[330893447,1719922237824,-4143.51827081,0.00014,2]
[330893463,1719922239690,-3466.91092241,0.00014,2]
[330893465,1719922239703,-7025.27976396,0.00014,2]
[330893471,1719922239743,-3377.68586456,0.00014,2]
[330893473,1719922239756,-300.0,0.00014,2]
[330893474,1719922239776,-6709.96768537,0.00014,2]
[330893475,1719922239806,-1818.9,0.00014,2]
[330893476,1719922239821,-356.19588052,0.00014,2]
[330893477,1719922239972,-317.39583238,0.00014,2]
[330893478,1719922239984,-552.33090042,0.00014,2]
[330893479,1719922240034,-346.73481017,0.00014,2]
[330893480,1719922240087,-320.10297877,0.00014,2]
[330893481,1719922240150,-2437.28945687,0.00014,2]
[330893482,1719922240162,-1625.96453914,0.00014,2]
[330893496,1719922242655,-173.02338528,0.00013999,2]
[330893497,1719922242665,-44025.34717042,0.00014,2]
[330893498,1719922242710,-781391.49666201,0.00014,2]
[330893499,1719922242767,-699.55983868,0.00014,2]
[330893500,1719922242883,-2568.06169968,0.00014,2]
[330893501,1719922242893,-3918.078,0.00014,2]
[330893502,1719922242902,-2645.63854,0.00014,2]
[330893503,1719922242915,-165.26,0.00014022,2]
[330893504,1719922242924,-173.22,0.00014035,2]
[330893505,1719922242934,-168.60295732,0.0001421,2]
[330893506,1719922242943,-919.79,0.00014265,2]
[330893507,1719922242952,-161.31,0.00014277,2]
[330893508,1719922242962,-250.0,0.0001431,2]
[330893509,1719922242971,-1000.0,0.00014491,2]
[330893510,1719922242980,-491.61691634,0.00014499,2]
[330893511,1719922242989,-461.65351825,0.00014499,2]
[330893512,1719922242999,-9974.56634815,0.00014673,2]
[330893513,1719922243008,-485.67,0.00014781,2]
[330893514,1719922243018,-161.70937443,0.00014799,2]
[330893515,1719922243028,-835.31061688,0.00014841,2]
[330893516,1719922243039,-164.37168205,0.00014899,2]
[330893517,1719922243049,-500.0,0.00015101,2]
[330893518,1719922243059,-600.0,0.00015101,2]
[330893519,1719922243068,-500.0,0.00015101,2]
[330893520,1719922243078,-500.0,0.00015101,2]
[330893521,1719922243088,-2324.21109593,0.00015176,2]
[330893522,1719922243100,-4534.84459588,0.00015176,2]
[330893523,1719922243109,-26475.76912289,0.000152,2]
[330893525,1719922243120,-4349.06031367,0.000152,2]
[330893528,1719922243144,-1182.09244288,0.000152,2]
[330893530,1719922243161,-1750.0,0.000152,2]
[330893532,1719922243176,-31958.07812056,0.000152,2]
[330893533,1719922243186,-200.0,0.00015211,2]
[330893534,1719922243198,-606.0,0.00015211,2]
[330893535,1719922243207,-406.5888,0.00015315,2]
[330893536,1719922243216,-9974.56634815,0.00015445,2]
[330893537,1719922243226,-485.67,0.0001552,2]
[330893538,1719922243235,-11482.0,0.000157,3]
[330893539,1719922243244,-835.31061688,0.00015781,2]
[330893540,1719922243253,-619.67,0.0001581,2]
[330893541,1719922243262,-11482.0,0.000161,5]
[330893542,1719922243271,-623.1312429,0.00016172,2]
[330893543,1719922243280,-9974.56634815,0.00016218,2]
[330893544,1719922243289,-485.67,0.0001626,2]
[330893545,1719922243298,-3572.0,0.000163,2]
[330893546,1719922243307,-867.0,0.000163,2]
[330893547,1719922243317,-1000.0,0.00016302,2]
[330893548,1719922243326,-450.75132957,0.00016315,2]
[330893549,1719922243335,-161.31,0.00016657,2]
[330893550,1719922243343,-161.70937441,0.00016691,2]
[330893551,1719922243353,-191.84,0.00016716,2]
[330893552,1719922243362,-835.31061688,0.00016722,2]
[330893553,1719922243371,-168.60295732,0.00016929,2]
[330893554,1719922243380,-9974.56634815,0.00016991,2]
[330893555,1719922243389,-170.963875,0.00016991,2]
[330893556,1719922243399,-170.963875,0.00016991,2]
[330893557,1719922243408,-151.0,0.00016991,2]
[330893558,1719922243418,-151.0,0.00016991,2]
[330893559,1719922243427,-151.0,0.00016991,2]
[330893560,1719922243436,-485.67,0.00016999,2]
[330893561,1719922243445,-3290.25,0.00017272,2]
[330893562,1719922243455,-835.31061688,0.00017663,2]
[330893563,1719922243464,-227.09542874,0.00017703,2]
[330893564,1719922243473,-485.67,0.00017738,2]
[330893565,1719922243483,-9974.56634815,0.00017764,2]
[330893566,1719922243493,-619.67,0.00018074,2]
[330893567,1719922243503,-1000.0,0.00018113,2]
[330893568,1719922243512,-613.0,0.00018448,2]
[330893569,1719922243523,-9974.56634815,0.00018536,2]
[330893570,1719922243532,-151.0,0.00018558,2]
[330893571,1719922243546,-151.0,0.00018558,2]
[330893572,1719922243568,-151.0,0.00018558,2]
[330893573,1719922243577,-151.0,0.00018558,2]
[330893574,1719922243586,-151.0,0.00018558,2]
[330893575,1719922243596,-208.794049,0.00018558,2]
[330893576,1719922243605,-208.794049,0.00018558,2]
[330893577,1719922243622,-151.0,0.00018558,2]
[330893578,1719922243635,-151.0,0.00018558,2]
[330893579,1719922243644,-391.493663,0.00018558,2]
[330893580,1719922243654,-156.266988,0.00018558,2]
[330893581,1719922243664,-391.493663,0.00018558,2]
[330893582,1719922243674,-151.137471,0.00018558,2]
[330893583,1719922243684,-151.0,0.00018558,2]
[330893584,1719922243693,-151.0,0.00018558,2]
[330893585,1719922243702,-151.0,0.00018558,2]
[330893586,1719922243711,-151.0,0.00018558,2]
[330893587,1719922243721,-307.417857,0.00018558,2]
[330893588,1719922243731,-368.027846,0.00018558,2]
[330893589,1719922243740,-307.417857,0.00018558,2]
[330893590,1719922243750,-368.027846,0.00018558,2]
[330893591,1719922243760,-151.0,0.00018558,2]
[330893592,1719922243769,-162.617805,0.00018558,2]
[330893593,1719922243778,-151.0,0.00018558,2]
[330893594,1719922243790,-372.343023,0.00018558,2]
[330893595,1719922243800,-372.343023,0.00018558,2]
[330893596,1719922243809,-201.563384,0.00018558,2]
[330893597,1719922243819,-201.563384,0.00018558,2]
[330893598,1719922243829,-151.0,0.00018558,2]
[330893599,1719922243838,-151.0,0.00018558,2]
[330893600,1719922243848,-807.27734,0.00018558,2]
[330893601,1719922243858,-807.27734,0.00018558,2]
[330893602,1719922243867,-151.0,0.00018558,2]
[330893603,1719922243877,-151.0,0.00018558,2]
[330893604,1719922243887,-159.29406,0.00018558,2]
[330893605,1719922243896,-463.686424,0.00018558,2]
[330893606,1719922243907,-156.386312,0.00018558,2]
[330893607,1719922243917,-463.686424,0.00018558,2]
[330893608,1719922243926,-151.743046,0.00018558,2]
[330893609,1719922243936,-161.70937441,0.00018582,2]
[330893610,1719922243945,-835.31061688,0.00018603,2]
[330893611,1719922243955,-151.0,0.00018643,2]
[330893612,1719922243964,-151.0,0.00018643,2]
[330893613,1719922243974,-151.0,0.00018643,2]
[330893614,1719922243984,-157.45813,0.00018643,2]
[330893615,1719922243993,-151.0,0.00018643,2]
[330893616,1719922244003,-310.23,0.00018849,30]
[330893617,1719922244012,-533.43075893,0.00018919,2]
[330893618,1719922244023,-2645.63855,0.00019,2]
[330893619,1719922244033,-161.31,0.00019037,2]
[330893620,1719922244042,-401.57927817,0.00019069,2]
[330893621,1719922244069,-250.0,0.00019178,2]
[330893622,1719922244079,-243.73700825,0.000192,7]
[330893623,1719922244090,-9974.56634815,0.00019309,2]
[330893624,1719922244099,-151.0,0.00019326,2]
[330893625,1719922244109,-151.0,0.00019326,2]
[330893626,1719922244119,-151.0,0.00019326,2]
[330893627,1719922244128,-151.0,0.00019326,2]
[330893628,1719922244138,-151.0,0.00019326,2]
[330893629,1719922244153,-151.0,0.00019326,2]
[330893630,1719922244163,-253.85497867,0.00019352,2]
[330893631,1719922244172,-251.81312797,0.00019389,2]
[330893632,1719922244183,-2025.0,0.000195,2]
[330893633,1719922244192,-835.31061688,0.00019544,2]
[330893634,1719922244202,-155.0,0.00019548,2]
[330893635,1719922244212,-170.963875,0.00019567,2]